[Event "44th Chess Olympiad Open 2022"]
[Site "Chennai"]
[Date "2022.08.03"]
[Round "6.11"]
[White "Bosiocic, Marin"]
[Black "Terry, Renato"]
[Result "1-0"]
[WhiteElo "2549"]
[BlackElo "2502"]
[Annotator "TA"]
[PlyCount "101"]
[EventDate "2022.??.??"]
[TimeControl "60"]

{[%evp 12,101,6,3,2,8,29,24,23,23,53,39,40,29,37,45,39,26,44,19,16,15,29,33,4,
13,29,31,27,23,20,24,27,-4,-4,-6,-2,-91,-86,-109,0,0,28,35,156,147,155,131,114,
116,213,216,222,213,335,324,362,362,357,347,357,360,405,413,387,370,345,352,
567,567,549,543,583,574,560,414,415,401,614,259,614,602,1202,444,434,432,423,
426,537,515,2079,1862]} 1. Nf3 {[%emt 0:00:03]} d5 {[%emt 0:00:18]} 2. g3 {
[%emt 0:00:15]} Nf6 {[%emt 0:00:10]} 3. Bg2 {[%emt 0:00:12]} c6 {[%emt 0:00:20]
} 4. O-O {[%emt 0:00:17]} Bg4 {[%emt 0:01:40]} 5. d3 {[%emt 0:00:31]} Nbd7 {
[%emt 0:00:07]} 6. h3 {[%emt 0:00:13]} Bh5 {[%emt 0:07:48]} 7. c4 {[%emt 0:00:
00]} dxc4 {[%emt 0:00:44] A07: Réti Opening: New York and Capablanca Systems.}
8. dxc4 {[%emt 0:00:13]} e5 {[%emt 0:04:44]} 9. Nc3 {[%emt 0:00:24]} Be7 {
[%emt 0:02:46] White has an edge. 9...Bc5 is the modern continuation.} 10. Nh4
{[%emt 0:02:15]} Bg6 {[%emt 0:04:23] Inhibits Nf5.} 11. Nxg6 {[%emt 0:04:10]}
hxg6 {[%emt 0:00:06] [#]} 12. Rb1 $5 $146 {[%emt 0:02:34] New and interesting.}
({Predecessor:} 12. Qc2 Qc7 13. Rd1 Nc5 14. Be3 Ne6 15. Na4 O-O 16. a3 Rfd8 17.
b4 Nd4 18. Qb2 {1-0 (47) Meier,G (2628)-Rychagov,A (2549) Chess.com INT 2021})
12... a5 {[%emt 0:01:42]} 13. a3 {[%emt 0:02:31]} Nb6 {[%emt 0:03:20]} 14. b3 {
[%emt 0:03:13]} Qd7 {[%emt 0:04:46]} 15. Be3 {[%emt 0:00:00]} Qxd1 {[%emt 0:03:
25]} 16. Rfxd1 {[%emt 0:00:43]} Nfd7 {[%emt 0:00:47]} 17. Ne4 {[%emt 0:09:18]}
Bxa3 {[%emt 0:04:40]} 18. c5 {[%emt 0:00:48]} Nd5 {[%emt 0:13:27]} 19. Nd6+ {
[%emt 0:01:24]} Ke7 {[%emt 0:00:09]} 20. Bxd5 {[%emt 0:00:31]} cxd5 {[%emt 0:
00:01]} 21. Rxd5 {[%emt 0:00:21] And now Rbd1 would win.} Ke6 {[%emt 0:03:26]}
22. Rbd1 {[%emt 0:02:56]} (22. Rdd1 $5 {[%cal Rd6f7]}) 22... Nf6 {[%emt 0:18:
34]} 23. R5d3 $36 {[%emt 0:18:07] Threatens to win with Nb5. Black is under
pressure.} Rxh3 {[%emt 0:00:00] White must now prevent ...e4.} 24. Bg5 {
[%emt 0:01:39] [#]} (24. Nxb7 $11 {keeps the balance.} Rah8 25. g4 (25. Nxa5
Rh1+ 26. Kg2 R8h2+ 27. Kf3 e4+ 28. Kf4 g5+ 29. Kxg5 Rh5+ 30. Kf4 g5#) (25. Nd8+
$2 Kf5 $19) 25... Nxg4 26. c6) 24... e4 $1 $17 {[%emt 0:01:56]} 25. R3d2 {
[%emt 0:01:17]} Rah8 {[%emt 0:05:19]} (25... Bxc5 $6 26. Bxf6 gxf6 27. Nxe4 $15
) (25... Bb4 $17 26. Bxf6 (26. Rc2 Rah8 $17) 26... Bxd2) 26. Bh4 $11 {[%emt 0:
00:37]} R8xh4 {[%emt 0:18:17]} (26... g5 $5 27. Kg2 gxh4 28. Kxh3 hxg3+ 29.
Kxg3 Nh5+ 30. Kh2 Nf4+ 31. Kg1 (31. Kg3 Nh5+ 32. Kh3 Bxc5 $11) 31... Nh3+ 32.
Kg2 Nf4+ 33. Kg3 Nh5+ 34. Kh3 Bxc5 $11) 27. gxh4 {[%emt 0:00:32]} Bxc5 {
[%emt 0:00:27]} (27... e3 $14 28. fxe3 Bxc5) 28. Nxb7 $16 {[%emt 0:03:02]} Bb4
{[%emt 0:00:01]} 29. Nd8+ {[%emt 0:00:00]} Kf5 {[%emt 0:00:02]} 30. Rc2 {
[%emt 0:00:08]} e3 {[%emt 0:00:09] [#]} (30... Rxb3 $16 {was worth a try.} 31.
Rc4 (31. Nxf7 a4 $16) 31... Kg4) 31. f3 $1 $18 {[%emt 0:02:08]} ({Much less
strong is} 31. Nxf7 $6 exf2+ 32. Kxf2 Rxh4 $14) 31... Rxh4 {[%emt 0:01:27]} 32.
Nxf7 {[%emt 0:00:22]} Nh5 {[%emt 0:00:56]} (32... g5 {keeps fighting.} 33. Nd6+
Kg6) 33. Nd6+ {[%emt 0:03:33]} Ke6 {[%emt 0:00:32]} 34. Nc4 {[%emt 0:00:16]}
Nf4 {[%emt 0:00:30]} 35. Nxe3 {[%emt 0:02:05]} Rh5 {[%emt 0:00:00]} 36. Ng4 {
[%emt 0:03:39]} Rb5 {[%emt 0:00:00]} 37. Rc6+ {[%emt 0:01:18]} Ke7 {[%emt 0:00:
31]} 38. Rc7+ {[%emt 0:00:33]} Ke6 {[%emt 0:00:10]} 39. e3 {[%emt 0:00:35]} ({
But not} 39. Rxg7 $6 Nxe2+ 40. Kf2 Nf4 $18) 39... Ne2+ {[%emt 0:00:47]} (39...
Nh5 40. Rc6+ Ke7 41. Rxg6 Bc3) 40. Kf2 {[%emt 0:00:44]} Nc3 {[%emt 0:00:01]}
41. Rd3 {[%emt 0:30:32]} Nd5 {[%emt 0:30:13]} 42. Rxg7 {[%emt 0:00:41]} Ne7 {
[%emt 0:00:01]} 43. f4 {[%emt 0:00:00]} Rh5 {[%emt 0:00:00]} 44. Ne5 {[%emt 0:
00:00]} Kf6 {[%emt 0:00:00]} (44... g5 $142 45. Kf3 Kf5) 45. Rf7+ {[%emt 0:00:
00]} Ke6 {[%emt 0:00:00]} 46. Rf8 {[%emt 0:00:00] White is clearly winning.} g5
{[%emt 0:00:00]} 47. Nf3 {[%emt 0:00:00]} (47. Ng4 $142 {[%csl Gg4][%cal Rf8f6]
} Nd5 48. f5+ Ke7 49. Ra8 (49. Rxd5 Kxf8 50. Rd7 Rh4 $18)) 47... gxf4 {[%emt 0:
00:00]} 48. Rxf4 {[%emt 0:00:00]} Bc5 {[%emt 0:00:00]} 49. Rh4 {[%emt 0:00:00]}
Rf5 {[%emt 0:00:00]} 50. Ke2 {[%emt 0:00:00] Strongly threatening e4.} Kf6 {
[%emt 0:00:00]} (50... Rd5 $142 51. Rh6+ Kd7 52. Ne5+ Kd8) 51. e4 {[%emt 0:00:
00] Weighted Error Value: White=0.18 (very precise) /Black=0.30} 1-0

[Event "44th Chess Olympiad Open 2022"]
[Site "Chennai"]
[Date "2022.08.03"]
[Round "6.11"]
[White "Cordova, Emilio"]
[Black "Saric, Ivan"]
[Result "1-0"]
[WhiteElo "2549"]
[BlackElo "2680"]
[Annotator "TA"]
[PlyCount "141"]
[EventDate "2022.??.??"]
[TimeControl "60"]

{[%evp 11,141,14,21,-5,0,-41,-25,-31,-26,-27,-31,-38,-39,-41,-27,-19,0,-45,-30,
-56,-63,-63,-56,-72,-73,-72,-56,-52,-54,-80,71,67,78,86,92,109,157,135,160,110,
240,260,246,241,224,186,190,186,211,216,226,225,207,184,176,185,314,278,400,
316,308,304,312,211,218,147,147,125,152,128,310,200,202,210,200,207,213,228,
192,138,315,315,391,396,502,400,371,344,337,203,240,211,207,202,173,151,147,
130,196,189,219,238,238,205,226,153,291,271,294,285,323,304,354,324,700,687,
1113,1021,29967,29968,29968,29969,29969,29967,6397,5509,29972,29973,29978,
29979,29967,12624]} 1. Nf3 {[%emt 0:00:06]} Nf6 {[%emt 0:00:42]} 2. g3 {
[%emt 0:00:26]} d5 {[%emt 0:00:26]} 3. Bg2 {[%emt 0:00:08]} g6 {[%emt 0:01:05]}
4. d4 {[%emt 0:01:04]} Bg7 {[%emt 0:00:06]} 5. O-O {[%emt 0:00:11]} O-O {
[%emt 0:00:23]} 6. c4 {[%emt 0:04:23]} c6 {[%emt 0:00:22] 6...c6 is better
than 6...dxc4.} 7. a4 {[%emt 0:00:46] D78: Fianchetto Grünfeld: 6 0-0 c6.} Be6
{[%emt 0:01:05]} 8. Nc3 {[%emt 0:01:50]} dxc4 {[%emt 0:00:14]} 9. e4 {[%emt 0:
00:00] Black has an edge.} Na6 {[%emt 0:00:45][%cal Yb8a6,Ya6b4,Yb4d3]} 10. Qe2
{[%emt 0:00:20]} Nb4 {[%emt 0:01:38]} 11. h3 {[%emt 0:02:11] [#] Against Bg4}
Ne8 $146 {[%emt 0:02:38][%cal Yf6e8,Ye8c7,Yc7e6,Ye6f4,Yf4g2]} ({Predecessor:} 
11... a5 12. Be3 Ne8 13. Rfd1 Nc7 14. Ne5 Qc8 15. Nxc4 Bxc4 16. Qxc4 Nc2 17.
Rac1 Nxe3 18. fxe3 {0-1 (43) Vaishali,R (2393)-Kantor,G (2527) Biel 2021}) 12.
Be3 {[%emt 0:01:12]} Qa5 {[%emt 0:05:53]} 13. Ng5 {[%emt 0:15:48]} Bd7 {
[%emt 0:05:51]} 14. f4 {[%emt 0:00:16][%cal Yf2f4,Yf4f5]} Nd3 {[%emt 0:01:33]}
15. Nf3 {[%emt 0:00:31]} Nc7 {[%emt 0:07:16]} 16. g4 {[%emt 0:12:55]} Ne6 {
[%emt 0:04:31]} 17. f5 {[%emt 0:15:53]} Nef4 {[%emt 0:01:07]} 18. Qd2 {[%emt 0:
00:18]} Nxg2 {[%emt 0:01:17]} 19. Kxg2 {[%emt 0:00:30]} c5 {[%emt 0:17:10]} 20.
d5 $1 {[%emt 0:06:00]} e5 $2 {[%emt 0:00:00]} (20... Qb6 $17 {keeps the
pressure on. aiming for ...gxf5.} 21. Rab1 gxf5 22. gxf5 Kh8) 21. Ne1 $16 {
[%emt 0:07:58] Pair of Knights!} Nf4+ {[%emt 0:00:00]} 22. Bxf4 {[%emt 0:01:00]
} exf4 {[%emt 0:00:03]} 23. Qxf4 {[%emt 0:00:00]} f6 {[%emt 0:09:21]} (23...
Qb6 $142 24. Ra2 gxf5) 24. Nf3 {[%emt 0:01:49]} a6 {[%emt 0:08:47]} 25. Qd2 {
[%emt 0:08:03]} ({Better is} 25. h4) 25... Rfe8 {[%emt 0:02:43]} (25... Rad8
$16) 26. Nh4 $18 {[%emt 0:06:36]} gxf5 {[%emt 0:00:00]} 27. Nxf5 {[%emt 0:00:
51]} Bxf5 {[%emt 0:00:07]} 28. Rxf5 {[%emt 0:00:12]} (28. gxf5 $6 Kh8 $16)
28... Rad8 {[%emt 0:00:38]} 29. Qf2 {[%emt 0:01:57]} b5 {[%emt 0:00:53]} 30.
Qxc5 {[%emt 0:01:20] And now d6 would win.} Rc8 {[%emt 0:00:00]} 31. Qd4 {
[%emt 0:00:42]} Qb4 {[%emt 0:01:46]} 32. Ra2 {[%emt 0:01:21]} bxa4 {[%emt 0:07:
24]} 33. Nxa4 {[%emt 0:02:03]} Qe1 {[%emt 0:01:02]} (33... Qb3 {was necessary.}
34. Nc3 Kh8) 34. Nc3 {[%emt 0:00:16]} Re5 {[%emt 0:01:35]} (34... Rf8 {was
called for.} 35. d6 Kh8) 35. Rf1 {[%emt 0:04:12]} Qh4 {[%emt 0:00:00]} 36. Qf2
{[%emt 0:00:24] Inhibits f5.} (36. Rxa6 $6 f5 $18) 36... Qg5 {[%emt 0:00:30]}
37. Qf4 {[%emt 0:00:28]} Rb8 {[%emt 0:01:33]} 38. Qxg5 {[%emt 0:01:52]} (38.
Rxa6 Rxb2+ 39. Kg1 Qxf4 40. Rxf4 Bh6 41. Rfxf6 Be3+ 42. Kf1 Bd4 $14) 38... fxg5
{[%emt 0:00:05]} 39. Re1 {[%emt 0:00:26]} Rb6 {[%emt 0:00:00]} 40. Re2 $36 {
[%emt 0:00:19] Keeping Black busy.} Bf8 $2 {[%emt 0:00:28]} (40... Re8 $16 41.
Ra4 Reb8) 41. Ra1 {[%emt 0:31:41]} Bd6 {[%emt 0:09:01]} 42. Rf1 {[%emt 0:00:00]
} Kg7 {[%emt 0:01:43]} 43. Rc1 {[%emt 0:00:00]} Rb4 {[%emt 0:05:43]} 44. Nd1 {
[%emt 0:00:00] Ne3 is the strong threat.} Kf7 {[%emt 0:00:19]} 45. Kf3 {
[%emt 0:00:00]} (45. Ra1 $1 $18) 45... Bc5 $2 {[%emt 0:02:13]} (45... Re8 $16
46. Ne3 Rc8) 46. Rec2 {[%emt 0:00:00]} Rb3+ {[%emt 0:02:56]} 47. Rc3 {[%emt 0:
00:00] Strongly threatening Rxb3.} Bb4 {[%emt 0:02:39]} 48. Re3 {[%emt 0:00:00]
} c3 {[%emt 0:02:30]} 49. Rc2 {[%emt 0:00:00]} Re7 {[%emt 0:02:50]} 50. Nxc3 {
[%emt 0:00:26]} Bc5 {[%emt 0:00:11]} 51. Rd3 {[%emt 0:01:23]} Bd6 {[%emt 0:00:
39]} 52. Ke2 {[%emt 0:03:27]} a5 {[%emt 0:00:00]} 53. Rf3+ {[%emt 0:00:52]} Kg7
{[%emt 0:00:24]} 54. Re3 {[%emt 0:00:41]} Bf4 {[%emt 0:00:23] [#]} (54... Rb4
$16 55. Kd3 Rb3) 55. Rd3 $1 {[%emt 0:00:05]} Bd6 {[%emt 0:00:17] [#]} 56. Rd4
$1 {[%emt 0:00:51]} Reb7 {[%emt 0:01:24]} 57. Ra4 {[%emt 0:00:44]} Rxb2 {
[%emt 0:00:29]} 58. Kd3 {[%emt 0:00:25]} Rxc2 {[%emt 0:01:22]} (58... R2b4 $16
{was worth a try.}) 59. Kxc2 $16 {[%emt 0:00:00] Endgame KRB-KRN} Bb4 {[%emt 0:
01:37]} 60. Na2 {[%emt 0:00:04]} Be1 {[%emt 0:03:33]} 61. e5 {[%emt 0:01:20]
[%cal Ye4e5,Ye5e6] Threatens to win with d6.} Bg3 {[%emt 0:02:44]} 62. e6 {
[%emt 0:00:12]} ({Less strong is} 62. Rxa5 Bxe5 63. Kd3 Rb3+ 64. Ke4 Bf4 $14)
62... Rb5 $2 {[%emt 0:00:21]} (62... Bc7 63. Nc3 Kf8) 63. Nc3 $18 {[%emt 0:00:
17]} Rc5 {[%emt 0:00:05]} 64. Kd3 {[%emt 0:00:29]} Be1 {[%emt 0:01:17]} 65. Rc4
{[%emt 0:00:00]} Rxc4 {[%emt 0:00:05]} 66. Kxc4 {[%emt 0:00:02] KB-KN} Kf6 {
[%emt 0:00:00]} 67. Ne4+ {[%emt 0:00:06]} Ke7 {[%emt 0:00:05]} 68. Nxg5 {
[%emt 0:00:09]} a4 {[%emt 0:00:08]} 69. Nxh7 {[%emt 0:01:32] White mates.} a3 {
[%emt 0:00:28]} 70. Kb3 {[%emt 0:00:04]} Bb4 {[%emt 0:00:03]} 71. g5 {[%emt 0:
00:15] Weighted Error Value: White=0.21 (precise) /Black=0.29 (precise)} ({
But not} 71. Kxb4 $2 a2 72. g5 (72. d6+ $2 Kxd6 73. Ng5 a1=Q $19) 72... a1=Q
$19) 1-0

[Event "44th Chess Olympiad Open 2022"]
[Site "Chennai"]
[Date "2022.08.03"]
[Round "6.11"]
[White "Escalante Ramirez, Brian Sebasti"]
[Black "Kozul, Zdenko"]
[Result "1/2-1/2"]
[WhiteElo "2496"]
[BlackElo "2602"]
[Annotator "TA"]
[PlyCount "71"]
[EventDate "2022.??.??"]
[TimeControl "60"]

{[%evp 9,71,0,4,0,0,0,11,7,0,0,14,10,24,18,29,28,28,0,0,0,0,11,6,11,40,39,47,
-7,0,-33,-24,-45,-7,-16,-3,-10,-13,-12,-1,-7,0,0,0,0,0,0,0,0,0,0,0,0,0,0,0,-15,
0,0,0,-37,-32,-36,-39,-872]} 1. e4 {[%emt 0:00:16]} c5 {[%emt 0:00:12]} 2. Nf3
{[%emt 0:00:06]} d6 {[%emt 0:00:41]} 3. d4 {[%emt 0:00:05]} cxd4 {[%emt 0:00:
00]} 4. Qxd4 {[%emt 0:00:03]} Nc6 {[%emt 0:00:54]} 5. Qd3 {[%emt 0:00:02]} g6 {
[%emt 0:06:42]} 6. Nc3 {[%emt 0:00:22] B53: Sicilian: 2...d6: Lines with Qxd4.}
Bg7 {[%emt 0:00:21]} 7. Be2 {[%emt 0:00:06]} Nf6 {[%emt 0:01:28][%cal Yg8f6,
Yf6d7,Yd7c5]} 8. Nd5 {[%emt 0:00:11] The position is equal.} Nd7 {[%emt 0:02:
40]} 9. c3 {[%emt 0:00:31]} Nc5 {[%emt 0:15:15]} 10. Qc2 {[%emt 0:00:00] [#]}
Bg4 $146 {[%emt 0:00:13]} ({Predecessor:} 10... e6 11. Nf4 O-O 12. O-O b6 13.
Nd3 Nxe4 14. Qa4 d5 15. Qxc6 Bd7 16. Qb7 Bb5 {0-1 (37) Kueppers,M (1996)
-Bausch,T (2221) ICCF email 2003}) 11. O-O {[%emt 0:01:38]} Rc8 {[%emt 0:00:00]
} 12. Bg5 {[%emt 0:15:57][%cal Yc1g5,Yg5h4,Yh4g3,Yg3h2]} h6 {[%emt 0:08:16]}
13. Bh4 {[%emt 0:08:08]} g5 {[%emt 0:10:34]} 14. Bg3 {[%emt 0:00:00]} h5 {
[%emt 0:00:25] [#] ...Bxf3 is the strong threat.} 15. h3 {[%emt 0:00:00]} Bxf3
{[%emt 0:01:00]} 16. Bxf3 {[%emt 0:00:02]} h4 {[%emt 0:00:46]} 17. Bh2 {
[%emt 0:00:22]} Be5 {[%emt 0:00:21]} 18. b4 {[%emt 0:13:53]} ({White should
play} 18. Be2 $14) 18... Nd7 {[%emt 0:02:23]} 19. Rad1 {[%emt 0:02:45]} e6 {
[%emt 0:03:39]} 20. Ne3 {[%emt 0:00:41]} Qc7 {[%emt 0:05:20][%cal Yc6b4]} (
20... Nd4 {is more complex.} 21. Qa4 Nxf3+ 22. gxf3 Ke7) 21. Qd2 {[%emt 0:00:
00]} Bxh2+ {[%emt 0:01:09]} 22. Kxh2 {[%emt 0:04:23]} Nce5 {[%emt 0:00:07]} 23.
Ng4 {[%emt 0:00:42]} Qxc3 {[%emt 0:05:29]} 24. Qxg5 {[%emt 0:12:50] [#] Hoping
for Rc1.} ({Of course not} 24. Qxd6 Nxg4+ 25. Bxg4 Qe5+ 26. f4 Qxd6 27. Rxd6
gxf4 $15) 24... Nxg4+ {[%emt 0:04:58]} 25. hxg4 {[%emt 0:06:01] aiming for Rc1.
} Qe5+ {[%emt 0:01:22]} 26. Qxe5 {[%emt 0:00:04]} Nxe5 {[%emt 0:00:04]} 27.
Rxd6 {[%emt 0:05:00]} Ke7 {[%emt 0:03:14]} 28. Rd2 {[%emt 0:01:15]} Rc4 {
[%emt 0:00:30]} 29. b5 {[%emt 0:02:15]} h3 {[%emt 0:05:33]} 30. Be2 {[%emt 0:
00:00]} hxg2+ {[%emt 0:01:16]} 31. Kxg2 {[%emt 0:00:02]} Rxe4 {[%emt 0:00:20]}
32. f3 {[%emt 0:08:12]} Ra4 {[%emt 0:02:41]} 33. Rc1 {[%emt 0:00:35]} b6 {
[%emt 0:03:10]} 34. Kg3 {[%emt 0:00:01]} Rd8 {[%emt 0:01:14]} 35. Rc7+ {
[%emt 0:02:34]} Rd7 {[%emt 0:00:39]} 36. Rd4 $2 {[%emt 0:00:00] Weighted Error
Value: White=0.09 (flawless) /Black=0.05 (flawless) . An unexpected result.}
1/2-1/2

[Event "44th Chess Olympiad Open 2022"]
[Site "Chennai"]
[Date "2022.08.03"]
[Round "6.12"]
[White "Nguyen, Thai Dai Van"]
[Black "Suleymenov, Alisher"]
[Result "1-0"]
[WhiteElo "2629"]
[BlackElo "2467"]
[Annotator "TA"]
[PlyCount "143"]
[EventDate "2022.??.??"]
[TimeControl "60"]

{[%evp 19,143,9,45,17,21,22,45,37,39,43,50,45,39,41,39,46,58,59,66,71,72,72,66,
72,77,0,29,0,62,75,83,56,66,66,51,26,18,17,14,15,14,16,18,-10,102,94,115,92,88,
89,160,126,131,70,70,70,70,56,311,306,270,29,333,284,365,365,365,262,284,283,
262,83,179,0,259,206,365,364,259,110,102,102,110,13,724,723,675,0,357,364,
29950,9871,5616,29969,29970,29971,29971,29972,29973,29974,29974,29975,29975,
29974,29974,29975,29975,29976,29976,29977,29977,29978,29978,29979,29981,29982,
29982,29983,29984,29985,29985,29986,29986,29987,29986,29986]} 1. Nf3 {[%emt 0:
00:00]} d5 {[%emt 0:01:14]} 2. d4 {[%emt 0:00:51]} Nf6 {[%emt 0:00:07]} 3. c4 {
[%emt 0:00:11]} dxc4 {[%emt 0:00:07]} 4. e3 {[%emt 0:00:15]} e6 {[%emt 0:00:07]
} 5. Bxc4 {[%emt 0:00:09]} c5 {[%emt 0:00:06]} 6. O-O {[%emt 0:00:14]} a6 {
[%emt 0:00:04]} 7. b3 {[%emt 0:01:59]} Nbd7 {[%emt 0:00:11]} 8. Bb2 {[%emt 0:
00:00]} Be7 {[%emt 0:03:19]} 9. Nbd2 {[%emt 0:00:11][%cal Yb1d2,Yd2c4,Yc4e5]}
O-O {[%emt 0:02:23]} 10. dxc5 $5 {[%emt 0:00:29] Exploring less charted
territory.} Bxc5 {[%emt 0:03:03]} 11. Bd3 {[%emt 0:04:24] D27: Queen's Gambit
Accepted: Classical main line: 7 e4!? and 7 a4.} Qe7 {[%emt 0:00:00]} 12. Qc2 {
[%emt 0:28:22] [#]} Ba3 $146 {[%emt 0:00:58]} ({Predecessor:} 12... h6 13. a4
b6 14. Ne4 Bb7 15. Nxc5 Nxc5 16. Bc4 Bd5 17. Bxf6 Qxf6 18. Bxd5 exd5 {½-½ 
(29) Erigaisi,A (2626)-Eljanov,P (2680) Sharjah 2021}) 13. Bxa3 {[%emt 0:20:03]
White is slightly better.} Qxa3 {[%emt 0:00:06]} 14. Nc4 {[%emt 0:00:11]} Qe7 {
[%emt 0:08:30]} 15. Rac1 {[%emt 0:01:41]} b6 {[%emt 0:00:00]} 16. Nfe5 {
[%emt 0:17:51]} Nxe5 {[%emt 0:00:24]} 17. Nxe5 {[%emt 0:00:06]} Bb7 {[%emt 0:
00:23]} 18. Qc7 {[%emt 0:00:18]} Qxc7 {[%emt 0:00:27]} 19. Rxc7 {[%emt 0:00:02]
} Rab8 {[%emt 0:00:18]} 20. Rfc1 {[%emt 0:02:35]} Nd5 {[%emt 0:00:00]} 21. Rd7
{[%emt 0:01:06]} Nf6 {[%emt 0:05:56]} 22. Rdc7 {[%emt 0:00:15] 0x0.
0005ebe2a83ddp-1022s more active pieces.} ({Better is} 22. Rd6 $1 $16) 22...
Nd5 $11 {[%emt 0:00:32]} 23. Rd7 {[%emt 0:00:04][%cal Yc7d7,Yd7d6,Yd6b6]} Nf6
$1 {[%emt 0:00:08] Against Be4} 24. Rd6 {[%emt 0:01:32]} b5 {[%emt 0:08:06]}
25. f3 {[%emt 0:00:12]} Rfc8 {[%emt 0:04:41]} 26. Rxc8+ {[%emt 0:00:05]} Rxc8 {
[%emt 0:00:03]} 27. e4 {[%emt 0:00:20]} Kf8 $1 {[%emt 0:00:00]} 28. Rb6 {
[%emt 0:00:59]} Rc7 {[%emt 0:03:05]} 29. a4 {[%emt 0:01:46]} Nd7 {[%emt 0:02:
59]} 30. Nxd7+ {[%emt 0:00:28]} Rxd7 {[%emt 0:00:03] Endgame KRB-KRB} 31. Bf1 {
[%emt 0:01:21]} bxa4 {[%emt 0:00:51]} (31... Ke7 $11) 32. bxa4 $16 {[%emt 0:00:
06]} g5 {[%emt 0:02:05]} 33. a5 {[%emt 0:04:16]} Kg7 {[%emt 0:01:13]} 34. Kf2 {
[%emt 0:00:59]} Bc8 {[%emt 0:02:20]} (34... Kf6 $142 35. Ke3 (35. Bxa6 Bxa6 36.
Rxa6 Rd2+ 37. Kg3 h5 $16) 35... Rc7) 35. Kg3 {[%emt 0:04:52]} Rd2 {[%emt 0:00:
46] [#]} 36. Bxa6 {[%emt 0:01:05]} (36. Rc6 $1 $16 {[%cal Rc6c8]} Bb7 37. Rb6)
36... Bxa6 $14 {[%emt 0:00:03]} 37. Rxa6 $16 {[%emt 0:00:03] KR-KR} Ra2 {
[%emt 0:00:16]} 38. Ra8 {[%emt 0:00:22]} h6 $2 {[%emt 0:02:04]} ({Black should
play} 38... f5 $1 $14) 39. a6 $18 {[%emt 0:00:09]} Kf6 {[%emt 0:00:28]} 40. h4
$2 {[%emt 0:01:46]} (40. a7 $18) 40... Kg7 $2 {[%emt 0:00:57]} (40... gxh4+ $11
41. Kxh4 Rxg2) 41. h5 {[%emt 0:14:07]} Kh7 {[%emt 0:06:59]} 42. Ra7 {[%emt 0:
07:34]} Kg7 {[%emt 0:00:00]} 43. Kh3 {[%emt 0:00:09]} Kg8 {[%emt 0:04:04]} 44.
Kh2 {[%emt 0:00:35]} Kg7 {[%emt 0:08:25]} 45. Kg1 $2 {[%emt 0:01:28]} (45. Ra8
$18 {is more deadly.}) 45... Kf6 $16 {[%emt 0:01:19] [#]} 46. Kh2 {[%emt 0:03:
07]} (46. g3 $142 $1) 46... Kg7 $1 $18 {[%emt 0:00:38]} 47. Kg3 {[%emt 0:00:06]
Black must now prevent f4.} Kf8 $2 {[%emt 0:01:01]} (47... Ra5 {keeps fighting.
} 48. Kf2 Ra3) 48. f4 {[%emt 0:02:42]} Ra5 {[%emt 0:08:51]} 49. e5 {[%emt 0:11:
45]} (49. Kg4 $18 {has better winning chances.}) 49... Ra3+ $16 {[%emt 0:00:08]
} 50. Kg4 {[%emt 0:00:03]} Ra4 {[%emt 0:00:08]} 51. g3 {[%emt 0:01:09]} (51.
Kf3 $16 Rxf4+ 52. Ke3) 51... Kg8 $2 {[%emt 0:00:21] Black is on the road to
losing.} (51... gxf4 $11 52. Ra8+ (52. gxf4 Ra3 $16) 52... Kg7) 52. Kf3 $18 {
[%emt 0:00:29]} Ra3+ {[%emt 0:00:09]} 53. Kg4 {[%emt 0:00:00]} Ra4 $1 {[%emt 0:
00:00]} 54. Kh3 {[%emt 0:00:55]} Ra5 $2 {[%emt 0:04:00]} (54... gxf4 $18 55.
Ra8+ Kg7) 55. fxg5 {[%emt 0:00:01] Intending Ra8+ and mate.} hxg5 {[%emt 0:00:
00]} 56. Ra8+ {[%emt 0:00:34]} Kg7 {[%emt 0:00:38] White mates.} 57. a7 {
[%emt 0:00:02]} Ra4 {[%emt 0:00:30]} 58. g4 {[%emt 0:01:09]} Kh7 {[%emt 0:00:
00]} 59. Kg3 {[%emt 0:00:06]} Ra3+ {[%emt 0:00:24]} 60. Kf2 {[%emt 0:00:07]}
Ra5 {[%emt 0:00:35]} 61. Kf3 {[%emt 0:00:09]} Ra4 {[%emt 0:00:28]} 62. Ke3 {
[%emt 0:00:06]} Kg7 {[%emt 0:00:33]} 63. Kd3 {[%emt 0:00:06]} Kh7 {[%emt 0:00:
00]} 64. Kc3 {[%emt 0:00:06]} Kg7 {[%emt 0:00:14]} 65. Kb3 {[%emt 0:00:05]} Ra1
{[%emt 0:00:46]} 66. Kb4 {[%emt 0:00:05]} Rb1+ {[%emt 0:00:31]} 67. Kc5 {
[%emt 0:00:05]} Ra1 {[%emt 0:00:29]} 68. Kd6 {[%emt 0:00:06]} Kh7 {[%emt 0:00:
00]} 69. Ke7 {[%emt 0:00:06]} Kg7 {[%emt 0:00:16]} 70. h6+ {[%emt 0:00:12]} Kh7
{[%emt 0:00:11]} 71. Kxf7 {[%emt 0:00:17]} Ra6 {[%emt 0:01:02]} 72. Kf6 {
[%emt 0:00:05] Weighted Error Value: White=0.43/Black=0.41} 1-0